bitfinex/quotes_ETHUSD_20220227
["timestamp","ask_amount","ask_price","bid_price","bid_amount"]
[1646004824749,3.057765,2606.0,2605.3,0.9786425]
[1646004824949,3.057765,2606.0,2605.6,0.3]
[1646004825149,1.89831055,2605.9,2605.6,0.3]
[1646004825348,4.057765,2606.0,2605.6,0.3]
[1646004825647,1.89831055,2605.9,2605.6,0.3]
[1646004826091,1.89831055,2605.9,2605.7,0.00119589]
[1646004826298,1.18197477,2605.7,2604.2,0.3827]
[1646004826501,1.42744397,2605.4,2604.8,0.9786425]
[1646004826697,2.36025863,2605.6,2604.5,2.00909918]
[1646004826895,1.32724146,2605.2,2604.7,2.00909918]
[1646004827195,1.32724146,2605.2,2604.5,2.00909918]
[1646004827598,1.60450975,2605.2,2604.2,2.00909918]
[1646004827997,0.07102,2605.1,2604.2,2.00909918]
[1646004828197,0.26674426,2605.0,2604.2,2.00909918]
[1646004828397,1.22758426,2605.0,2604.2,2.00909918]
[1646004828597,0.96084,2605.0,2604.2,2.00909918]
[1646004829199,0.96084,2605.0,2604.3,2.00909918]
[1646004829403,0.96084,2605.0,2604.5,2.00909918]
[1646004830245,0.96084,2605.0,2604.5,0.3]
[1646004830444,0.96084,2605.0,2604.6,2.00909918]
[1646004830845,0.96084,2605.0,2604.9,2.00909918]
[1646004831046,0.96084,2605.0,2604.5,0.3]
[1646004831248,0.96084,2605.0,2604.2,0.3]
[1646004831446,0.96084,2605.0,2604.3,2.00909918]
[1646004832045,0.96084,2605.0,2604.2,0.3]
[1646004832246,1.13898353,2604.7,2604.2,0.3]
[1646004832447,1.13898353,2604.7,2604.1,2.00909918]
[1646004832448,3.06075353,2604.7,2604.1,2.00909918]
[1646004832646,3.06075353,2604.7,2604.1,0.3]
[1646004832848,4.06075353,2604.7,2604.1,0.3]
[1646004833047,3.06075353,2604.7,2604.1,0.3]
[1646004833248,4.06075353,2604.7,2603.9,2.30909918]
[1646004833489,1.92177,2604.7,2603.9,0.3]
[1646004833692,2.99285,2604.7,2604.1,2.00909918]
[1646004833893,2.99285,2604.7,2604.1,2.30909918]
[1646004834094,2.99285,2604.7,2603.6,1.62281125]
[1646004834299,2.99285,2604.7,2603.9,2.00909918]
[1646004834496,2.99285,2604.7,2604.3,0.00105852]
[1646004834497,1.92177,2604.7,2604.3,0.00105852]
[1646004834696,0.07109,2604.6,2604.3,0.00105852]
[1646004835097,0.96087,2604.5,2604.3,0.00105852]
[1646004835595,2.33370292,2604.5,2604.0,2.00909918]
[1646004835796,2.33370292,2604.5,2604.3,0.00103938]
[1646004836601,2.33370292,2604.5,2603.4,6.8468]
[1646004836810,2.33370292,2604.5,2603.6,2.00909918]
[1646004837003,2.33370292,2604.5,2604.3,0.00103938]
[1646004837004,0.07109,2604.4,2604.3,0.00103938]
[1646004837249,0.34093388,2604.4,2604.3,0.00103938]
[1646004837451,0.34093388,2604.4,2603.3,2.00909918]
[1646004838051,0.96123,2603.9,2603.3,2.00909918]
[1646004839255,0.96123,2603.9,2603.5,0.00095997]
[1646004839459,1.40077777,2603.8,2603.5,0.00095997]
[1646004839656,0.24576094,2603.7,2603.5,0.00095997]
[1646004840259,0.24576094,2603.7,2602.9,2.00909918]
[1646004840460,1.96123,2603.9,2603.6,2.00909918]
[1646004840461,0.96123,2603.9,2603.6,2.00909918]
[1646004840660,1.92211,2604.3,2603.6,2.00909918]
[1646004840859,1.22803608,2604.4,2603.6,2.00909918]
[1646004841297,1.22803608,2604.4,2603.5,2.01005915]
[1646004841498,1.09105502,2604.2,2603.5,2.30909918]
[1646004841698,1.34514307,2604.2,2603.9,0.00095983]
[1646004841898,0.23472953,2604.0,2603.9,0.00095983]
[1646004842108,0.26111423,2604.2,2603.9,0.00095983]
[1646004842503,0.96098,2604.4,2603.9,0.00095983]
[1646004842504,1.23789654,2604.4,2603.9,0.00095983]
[1646004842708,1.23789654,2604.4,2602.7,2.00909918]
[1646004842709,0.0008,2603.8,2602.7,2.00909918]
[1646004842903,0.0008,2603.8,2603.2,0.00390171]
[1646004842904,0.23702306,2603.6,2603.2,0.00390171]
[1646004843304,1.21727871,2603.7,2603.2,0.00390171]
[1646004843904,1.21727871,2603.7,2603.0,2.00909918]
[1646004844204,0.22755647,2603.6,2603.3,0.00097537]
[1646004844404,0.20460833,2603.4,2603.3,0.00097537]
[1646004844609,1.85230981,2603.5,2603.3,0.00097537]
[1646004845066,1.85230981,2603.5,2602.4,2.00909918]
[1646004845363,1.85230981,2603.5,2603.3,0.00097539]
[1646004845562,1.85230981,2603.5,2602.9,0.00390214]
[1646004845563,0.07095,2603.4,2602.9,0.00390214]
[1646004846263,0.07094,2603.6,2602.8,2.00909918]
[1646004846665,1.1431831,2603.4,2602.8,2.00909918]
[1646004846866,0.07094,2603.6,2602.5,3.8827]
[1646004847068,1.41844,2603.7,2603.3,2.00909918]
[1646004847069,0.96144,2603.7,2603.3,2.00909918]
[1646004847968,2.33862623,2603.7,2603.3,2.00909918]
[1646004848497,2.33862623,2603.7,2602.8,2.00909918]
[1646004848702,2.33862623,2603.7,2602.8,2.30909918]
[1646004849201,0.96144,2603.7,2602.8,1.70599243]
[1646004849600,0.96144,2603.7,2602.0,3.5]
[1646004849807,0.07109,2603.6,2602.5,2.00909918]
[1646004850004,0.52809,2603.6,2602.5,2.00909918]
[1646004850204,0.52809,2603.6,2603.1,0.00118659]
[1646004850708,1.11442731,2603.5,2603.1,0.00118659]
[1646004850903,0.07112,2603.4,2603.1,0.00118659]
[1646004851105,0.07112,2603.4,2603.0,0.153658]
[1646004851303,0.07112,2603.4,2602.7,2.00909918]
[1646004852359,0.07112,2603.4,2602.4,2.00909918]
[1646004852553,2.9559,2603.5,2602.4,2.00909918]
[1646004852755,0.457,2603.4,2602.4,2.00909918]
[1646004852953,0.07117,2603.3,2602.4,2.00909918]
[1646004853155,3.04225,2604.4,2602.6,4.5]
[1646004853354,7.00644278,2604.8,2603.3,5.0]
[1646004853355,0.457,2604.3,2603.3,5.0]
[1646004853554,0.707,2604.3,2603.3,1.28776008]
[1646004853755,0.707,2604.3,2603.3,1.58776008]
[1646004854256,0.457,2604.3,2603.3,1.58776008]
[1646004854455,0.457,2604.3,2604.0,1.33805551]
[1646004854759,0.96136,2604.4,2603.8,5.0]
[1646004855358,0.96136,2604.4,2603.4,3.5]
[1646004855557,0.96136,2604.4,2603.3,0.37233352]
[1646004855758,2.11838728,2604.4,2603.6,5.0]
[1646004856001,0.96136,2604.4,2603.4,3.5]
[1646004856198,1.238834,2604.4,2603.3,3.57233352]
[1646004856397,0.96136,2604.4,2603.5,0.3827]
[1646004856601,0.38240279,2604.4,2604.3,5.0]
[1646004856801,1.92149,2605.3,2604.3,8.8827]
[1646004856999,0.75,2605.5,2604.6,5.0]
[1646004857199,0.75,2605.5,2604.6,5.3]
[1646004857400,0.26261881,2605.6,2604.7,3.5]
[1646004857802,0.26261881,2605.6,2604.6,5.3]
[1646004858002,0.26354044,2605.4,2604.4,0.07112]
[1646004858205,1.42671523,2605.3,2604.4,0.07112]
[1646004858401,1.23474766,2605.2,2604.4,0.07112]
[1646004858600,1.23474766,2605.2,2604.5,5.0]
[1646004858802,1.0,2605.5,2604.8,5.0]
[1646004859112,0.02342412,2606.3,2605.5,5.0]
[1646004859406,7.6731,2606.7,2606.2,5.0]
[1646004859601,7.6731,2606.7,2606.1,0.01286905]
[1646004859602,6.77803988,2606.7,2606.3,5.0]
[1646004859848,6.77803988,2606.7,2606.3,1.2212]
[1646004859849,0.02205863,2606.4,2606.3,1.2212]
[1646004860055,0.02205863,2606.4,2606.1,5.0]
[1646004860258,0.02205863,2606.4,2605.8,0.3]
[1646004860452,0.02205863,2606.4,2605.9,1.16948159]
[1646004860651,0.96027,2606.6,2605.7,5.0]
[1646004860652,0.96027,2606.6,2605.7,5.3]
[1646004860951,0.96027,2606.6,2605.7,5.0]
[1646004861254,0.96027,2606.6,2604.9,0.11721744]
[1646004861451,0.96027,2606.6,2605.6,5.0]
[1646004861452,7.757,2606.5,2605.6,5.0]
[1646004862552,7.757,2606.5,2604.9,0.11721744]
[1646004862757,0.457,2606.5,2605.6,0.3827]
[1646004862958,6.77803988,2606.7,2606.2,5.0]
[1646004863354,0.00586959,2606.4,2606.2,5.0]
[1646004863598,0.00586959,2606.4,2606.2,5.3]
[1646004864297,6.77803988,2606.7,2606.3,5.27504796]
[1646004864499,6.77803988,2606.7,2606.6,5.3827]
[1646004864500,8.56e-06,2606.7,2606.6,5.3827]
[1646004864699,0.27347461,2607.1,2606.6,9.1827]
[1646004864898,0.02347461,2607.1,2607.0,5.3827]
[1646004865097,0.02347461,2607.1,2607.0,5.6827]
[1646004865303,0.02347461,2607.1,2607.0,1.59965527]
[1646004865500,0.00173822,2607.7,2607.0,1.59965527]
[1646004865701,0.00173822,2607.8,2607.0,6.59965527]
[1646004865899,0.00549208,2607.2,2607.0,1.59965527]
[1646004866302,9.208e-05,2607.2,2607.1,9.02089997]
[1646004866701,0.00173822,2607.8,2607.1,9.02089997]
[1646004866902,0.25,2608.0,2607.5,5.0]
[1646004866903,0.25173822,2608.0,2607.5,5.0]
[1646004867101,1.89736235,2608.2,2607.5,5.0]
[1646004867376,0.00173822,2608.2,2607.5,5.0]
[1646004867579,0.25,2608.6,2607.1,0.13819997]
[1646004867580,1.90890568,2609.8,2608.1,5.0122497]
[1646004867779,1.91225471,2610.2,2609.7,5.0]
[1646004867982,1.89492969,2610.6,2610.1,10.00895803]
[1646004868178,0.01369476,2610.9,2610.5,4.99636041]
[1646004868379,0.01959768,2611.2,2610.8,10.72115193]
[1646004868380,7.268e-05,2611.0,2610.8,10.72115193]
[1646004868577,9.768e-05,2611.2,2610.9,3.5]
[1646004868779,9.768e-05,2611.2,2611.1,4.99636041]
[1646004868977,9.768e-05,2611.2,2611.1,5.45336041]
[1646004869581,9.768e-05,2611.2,2610.0,3.9344]
[1646004869779,9.768e-05,2611.2,2610.4,4.99636041]
[1646004869979,0.18017876,2611.2,2610.0,0.4344]
[1646004870180,0.18017876,2611.2,2610.3,4.99636041]
[1646004870380,0.18017876,2611.2,2611.0,4.99636041]
[1646004870381,9.768e-05,2611.2,2611.0,4.99636041]
[1646004870778,0.02194762,2611.1,2611.0,4.99636041]
[1646004871006,4.762e-05,2611.1,2611.0,8.49636041]
[1646004871201,4.762e-05,2611.1,2611.0,4.99636041]
[1646004871603,9.768e-05,2611.2,2611.0,4.99636041]
[1646004872001,9.768e-05,2611.2,2611.1,3.5]
[1646004872401,9.768e-05,2611.2,2611.0,4.99636041]
[1646004872604,9.768e-05,2611.2,2611.1,3.5]
[1646004872803,9.768e-05,2611.2,2611.0,5.29636041]
[1646004873004,0.00597483,2611.2,2611.0,5.29636041]
[1646004873904,0.0137986,2611.3,2611.0,5.29636041]
[1646004874103,0.0137986,2611.3,2610.7,4.288732]
[1646004874104,0.0137986,2611.3,2611.2,4.99636041]
[1646004874304,9.86e-05,2611.3,2611.2,4.99636041]
[1646004874758,0.0166703,2612.7,2611.4,5.5]
[1646004874957,0.0166703,2612.7,2612.6,4.99636041]
[1646004875159,0.01839896,2612.7,2612.6,4.99636041]
[1646004875359,0.25,2613.3,2612.7,6.5]
[1646004875559,2.11e-05,2613.4,2613.2,4.99636041]
[1646004875769,3.01e-05,2613.9,2613.4,5.5]
[1646004875962,3.01e-05,2613.9,2613.8,5.00839614]
[1646004876161,0.25,2614.2,2613.8,5.00839614]
[1646004876162,0.25,2614.2,2614.0,5.5]
[1646004876361,0.0191327,2614.9,2614.1,8.95336041]
[1646004876564,0.25,2615.1,2614.2,6.51225039]
[1646004876767,0.01474674,2615.3,2614.0,0.3]
[1646004876965,0.01474674,2615.3,2613.8,0.13819997]
[1646004877164,0.048316,2614.8,2613.8,0.13819997]
[1646004877362,0.048316,2614.8,2614.6,4.99636041]
[1646004877563,0.01474674,2615.3,2614.6,4.99636041]
[1646004877564,0.04774757,2614.7,2614.6,4.99636041]
[1646004877762,0.04774757,2614.7,2614.6,5.29636041]
[1646004877962,0.04774757,2614.7,2614.6,4.99636041]
[1646004878271,0.04774757,2614.7,2614.1,4.99636041]
[1646004878272,0.49963604,2614.5,2614.1,4.99636041]
[1646004878504,0.49963604,2614.5,2612.9,3.5]
[1646004878704,0.0460423,2614.4,2613.9,4.99636041]
[1646004878904,0.04776669,2614.4,2613.9,4.99636041]
[1646004879103,0.00584994,2613.8,2613.6,4.99636041]
[1646004879506,0.04206334,2613.7,2613.6,4.99636041]
[1646004880106,6.334e-05,2613.7,2613.6,9.49636041]
[1646004880307,6.334e-05,2613.7,2613.6,4.99636041]
[1646004880506,6.334e-05,2613.7,2613.6,5.29636041]
[1646004880712,6.334e-05,2613.7,2613.6,4.99636041]
[1646004881308,6.334e-05,2613.7,2613.4,4.99636041]
[1646004881707,1.23252278,2613.6,2613.4,4.99636041]
[1646004881906,1.23252278,2613.6,2612.7,0.13819997]
[1646004882114,0.00172439,2613.5,2612.7,0.13819997]
[1646004882362,0.00172439,2613.5,2613.4,4.99636041]
[1646004882568,6.334e-05,2613.7,2613.4,4.99636041]
[1646004882763,6.334e-05,2613.7,2612.6,0.01224111]
[1646004882963,0.00585004,2613.2,2612.6,0.01224111]
[1646004883162,0.00585004,2613.2,2613.1,4.99636041]
[1646004883364,0.00172439,2614.0,2613.1,4.99636041]
[1646004883365,5.674e-05,2615.3,2613.3,5.5]
[1646004883570,0.25,2615.9,2615.2,4.99636041]
[1646004883768,0.00751292,2616.1,2614.7,0.13819997]
[1646004884065,0.9567,2616.0,2614.7,0.13819997]
[1646004884266,0.46451292,2616.1,2614.6,4.99636041]
[1646004884466,0.46451292,2616.1,2614.3,0.3]
[1646004884467,0.00751292,2616.1,2614.3,0.3]
[1646004884666,0.00751292,2616.1,2614.3,3.8]
[1646004885068,0.00751292,2616.1,2614.2,0.27931003]
[1646004885266,2.90714,2615.9,2614.2,0.27931003]
[1646004885467,0.457,2615.8,2614.2,0.27931003]
[1646004885668,1.25245182,2615.5,2614.9,4.99636041]
[1646004885868,1.25245182,2615.5,2614.7,4.99636041]
[1646004886105,1.25245182,2615.5,2614.2,0.27931003]
[1646004886309,1.25245182,2615.5,2614.5,4.99636041]
[1646004886505,0.25,2615.9,2614.2,0.27931003]
[1646004886506,0.00582297,2615.3,2614.2,0.27931003]
[1646004886708,0.00582297,2615.3,2615.2,5.29636041]
[1646004886906,0.00582297,2615.3,2615.2,4.99636041]
[1646004887306,0.00171883,2615.8,2614.2,3.77931003]
[1646004887506,0.00171883,2615.8,2614.6,4.99636041]
[1646004887507,1.05346097,2614.9,2614.6,4.99636041]
[1646004887707,1.05346097,2614.9,2614.2,0.27931003]
[1646004887909,1.05346097,2614.9,2613.5,0.00148866]
[1646004888109,0.00171883,2614.8,2613.6,4.99636041]
[1646004888713,1.29822635,2614.2,2613.6,4.99636041]
[1646004889109,1.29822635,2614.2,2613.5,0.00148866]
[1646004889757,1.29822635,2614.2,2612.8,4.99636041]
[1646004889758,1.07375108,2613.7,2612.8,4.99636041]
[1646004890057,1.07375108,2613.7,2613.5,0.00148866]
[1646004890260,0.00171883,2613.6,2612.2,4.99636041]
[1646004890461,0.00171883,2613.6,2612.0,4.99636041]
[1646004890660,0.457,2613.5,2612.0,4.99636041]
[1646004890859,1.34399105,2612.3,2612.0,4.99636041]
[1646004891059,0.707,2613.1,2612.0,4.99636041]
[1646004891264,0.3,2613.5,2612.6,4.99636041]
[1646004891265,0.00171883,2613.0,2612.6,4.99636041]
[1646004891459,0.00171883,2613.4,2612.4,3.87136041]
[1646004891662,0.00171883,2613.4,2612.1,3.87136041]
[1646004891663,0.45871883,2613.4,2612.1,3.87136041]
[1646004891859,0.75871883,2613.4,2611.3,3.63819997]
[1646004892060,0.75871883,2613.4,2611.8,3.87136041]
[1646004892258,0.75871883,2613.4,2612.0,3.87136041]
[1646004892459,0.75871883,2613.4,2611.6,3.87136041]
[1646004892460,1.30681085,2612.2,2611.6,3.87136041]
[1646004892661,1.30681085,2612.2,2611.0,20.0]
[1646004892662,0.95829,2611.9,2611.0,20.0]
[1646004893059,0.00171883,2611.8,2611.0,20.0]
[1646004893259,0.00171883,2612.0,2611.0,20.0]
[1646004893504,0.25,2612.4,2611.5,3.87136041]
[1646004893505,1.33380639,2611.6,2611.5,3.87136041]
[1646004893699,6.39e-06,2611.6,2611.5,3.87136041]
[1646004893903,0.95982883,2612.3,2611.5,3.87136041]
[1646004894911,0.95982883,2612.3,2611.8,0.00148591]
[1646004895109,1.28363005,2612.2,2611.8,0.00148591]
[1646004895509,1.28363005,2612.2,2612.1,3.87136041]
[1646004896109,1.28363005,2612.2,2611.9,0.00148585]
[1646004896309,0.00171883,2612.1,2612.0,3.87136041]
[1646004896516,1.28363005,2612.2,2611.9,0.00148585]
[1646004897009,1.28363005,2612.2,2611.6,3.87136041]
[1646004897246,1.02690144,2611.7,2611.6,3.87136041]
[1646004897445,0.97690144,2611.7,2611.6,3.87136041]
[1646004897846,0.63441883,2612.6,2611.7,0.73562591]
[1646004898047,0.00171883,2612.6,2611.7,0.73562591]
[1646004898448,0.00171883,2612.6,2612.0,0.00148577]
[1646004898648,0.95967883,2612.7,2612.0,0.00148577]
[1646004899054,1.32552094,2612.6,2612.0,0.00148577]
[1646004899447,1.32552094,2612.6,2611.9,3.87136041]
[1646004899448,1.07869796,2612.1,2611.9,3.87136041]
[1646004899949,1.07869796,2612.1,2611.3,3.87136041]
[1646004899950,2.03682796,2612.1,2611.3,3.87136041]
[1646004900150,0.00171883,2612.0,2611.3,3.87136041]
[1646004900349,1.38041679,2612.1,2611.3,3.87136041]
[1646004900748,1.19376997,2611.4,2611.3,3.87136041]
[1646004901006,0.00171883,2611.9,2611.3,3.87136041]
[1646004901200,0.3,2611.9,2611.3,3.87136041]
[1646004901401,1.25829,2611.9,2611.3,3.87136041]
[1646004901609,0.95829,2611.9,2611.3,3.87136041]
[1646004902003,0.95829,2611.9,2611.5,0.00148608]
[1646004902808,0.00171883,2612.2,2611.7,3.87136041]
[1646004903005,1.34491025,2611.8,2611.6,3.87136041]
[1646004903205,1.34491025,2611.8,2611.6,0.00148602]
[1646004904213,1.34491025,2611.8,2611.4,3.87136041]
[1646004904407,1.34491025,2611.8,2611.6,0.00148602]
[1646004905459,1.34491025,2611.8,2611.5,3.87136041]
[1646004905661,1.34491025,2611.8,2611.6,0.00148602]
[1646004906261,1.34491025,2611.8,2611.6,3.87284643]
[1646004906662,1.34491025,2611.8,2611.6,3.87136041]
[1646004907365,0.95812,2612.0,2611.7,3.5]
[1646004907564,0.00171883,2612.2,2611.9,3.87136041]
[1646004907769,0.00171883,2612.2,2611.7,3.8827]
[1646004907770,1.91554,2612.9,2612.1,6.37136041]
[1646004907965,1.91554,2612.9,2610.5,2.73221417]
[1646004908168,5.0,2611.5,2609.0,1.38211]
[1646004908368,5.0,2611.5,2608.6,0.5]
[1646004908369,4.3397,2611.4,2608.6,0.5]
[1646004908609,0.3827,2610.6,2608.4,2.3665]
[1646004908808,0.3827,2610.4,2608.5,0.3827]
[1646004909007,1.38392963,2609.0,2608.5,0.3827]
[1646004909213,0.25,2609.8,2607.9,7.3027]
[1646004909412,0.25,2609.8,2607.7,5.8308]
[1646004909608,0.25,2609.8,2608.7,5.0]
[1646004909812,0.95901,2610.3,2608.9,12.0127]
[1646004910209,0.95901,2610.3,2608.8,0.01210181]
[1646004910410,0.95901,2610.3,2608.5,0.3955821]
[1646004910612,1.25591823,2609.5,2608.5,0.3955821]
[1646004910809,1.25591823,2609.5,2608.9,0.3827]
[1646004911009,1.25591823,2609.5,2608.8,7.3]
[1646004911415,1.91756,2610.0,2608.5,0.0128821]
[1646004911811,1.91756,2610.0,2609.0,0.00148376]
[1646004912460,1.22379193,2609.2,2609.0,0.00148376]
[1646004912655,1.22379193,2609.2,2608.7,1.98951977]
[1646004912855,1.22379193,2609.2,2608.9,0.3827]
[1646004913455,1.91756,2610.0,2608.9,0.6827]
[1646004913856,1.91756,2610.0,2609.0,0.3827]
[1646004914055,1.91756,2610.0,2609.3,0.00148359]
[1646004914258,0.25,2610.1,2609.3,12.01418359]
[1646004914459,1.15917217,2610.3,2609.3,13.01418359]
[1646004914662,0.25,2610.8,2609.3,13.01418359]
[1646004914663,0.25,2610.8,2609.3,1.38418359]
[1646004914858,0.25,2610.8,2609.4,1.60648207]
[1646004915058,0.25,2610.8,2608.9,7.55]
[1646004915258,0.25,2610.8,2609.9,0.00148325]
[1646004915460,1.41537,2610.9,2609.9,0.00148325]
[1646004915661,0.95837,2610.9,2609.9,0.00148325]
[1646004916300,0.25,2611.3,2609.8,0.6827]
[1646004916301,1.20822,2611.3,2609.8,0.6827]
[1646004916496,1.20822,2611.3,2610.3,0.00148305]
[1646004916901,1.26924013,2610.6,2610.3,0.00148305]
[1646004917502,1.26924013,2610.6,2609.7,3.8827]
[1646004917703,1.26924013,2610.6,2609.7,0.3]
[1646004918104,0.25,2611.3,2610.1,12.0127]
[1646004918304,0.25,2611.3,2610.3,0.3827]
[1646004918504,0.00171053,2611.8,2610.5,0.3827]
[1646004918712,0.00171053,2611.8,2610.7,0.3827]
[1646004918903,0.46938667,2612.8,2610.6,3.8]
[1646004918904,2.87583053,2612.7,2610.9,0.3827]
[1646004919104,2.87583053,2612.7,2611.1,0.3827]
[1646004919305,2.87583053,2612.7,2611.3,12.0127]
[1646004919504,2.87583053,2612.7,2611.5,0.3827]
[1646004919757,2.87583053,2612.7,2611.4,0.3827]
[1646004920154,2.87583053,2612.7,2610.8,3.5]
[1646004920354,2.87583053,2612.7,2610.8,3.8]
[1646004920557,0.3,2612.6,2610.8,3.8]
[1646004920758,0.00171053,2612.5,2610.9,0.3827]
[1646004920956,0.95801,2612.0,2611.1,12.0127]
[1646004921159,2.16601,2613.0,2610.9,5.0]
[1646004921160,0.25171053,2612.6,2611.3,12.0127]
[1646004921359,0.00171053,2611.9,2611.6,0.00148231]
[1646004921655,0.00171053,2612.5,2611.6,0.38418231]
[1646004922155,1.03726437,2612.1,2611.6,0.38418231]
[1646004922355,1.03726437,2612.1,2611.2,3.6531]
[1646004922356,1.03726437,2612.1,2611.2,0.1531]
[1646004922567,0.00171053,2612.0,2611.2,0.1531]
[1646004922758,5.20265268,2612.9,2611.2,0.1531]
[1646004922759,0.148,2613.9,2611.9,0.01245058]
[1646004922966,9.57889,2614.1,2611.4,5.0]
[1646004922967,0.5,2614.2,2612.9,0.01223141]
[1646004923159,0.25,2614.2,2612.9,5.0]
[1646004923358,0.02325029,2614.4,2613.7,12.0127]
[1646004923604,0.25,2614.8,2613.9,12.0127]
[1646004923799,1.24834373,2614.5,2613.8,0.153]
[1646004924805,0.957,2614.7,2613.8,0.153]
[1646004925006,0.25,2615.1,2613.8,0.153]
[1646004925407,5.0,2614.9,2613.8,0.153]
[1646004925610,1.91433,2614.4,2613.8,0.153]
[1646004926007,1.3693698,2614.6,2613.8,0.153]
[1646004926208,0.00581594,2614.5,2613.3,0.00148846]
[1646004926508,0.00581594,2614.5,2613.6,0.3827]
[1646004926509,0.00752268,2614.5,2613.6,0.3827]
[1646004926711,0.00752268,2614.5,2613.6,12.3127]
[1646004926915,0.00752268,2614.5,2613.7,0.457]
[1646004926916,0.00581594,2614.5,2613.7,0.457]
[1646004927111,0.00581594,2614.5,2613.6,4.55762338]
[1646004927112,0.00170674,2615.0,2613.6,0.01219025]
[1646004927363,0.26108892,2615.0,2613.3,0.153]
[1646004927561,1.16737035,2614.1,2613.3,0.153]
[1646004927865,1.16907709,2614.1,2613.3,0.153]
[1646004928062,0.95732,2613.6,2612.5,0.153]
[1646004928463,2.87253,2613.9,2612.5,0.153]
[1646004928464,0.00170674,2613.5,2612.5,0.153]
[1646004928662,0.00170674,2613.5,2612.2,1.78231892]
[1646004928663,1.19665831,2613.5,2612.2,1.78231892]
[1646004928863,1.19665831,2613.5,2612.2,0.153]
[1646004929064,0.00170674,2613.4,2612.2,0.153]
[1646004929662,0.00170674,2613.4,2612.3,0.457]
[1646004930062,0.95734,2613.5,2612.4,0.153]
[1646004930266,7.3,2615.4,2612.7,0.3827]
[1646004930267,2.872,2614.7,2612.7,0.3827]
[1646004930469,2.872,2614.7,2612.9,0.01220455]
[1646004930662,3.82869,2615.2,2613.0,1.4138794]
[1646004930663,0.95702,2614.5,2613.0,1.4138794]
[1646004930866,0.25,2614.9,2613.0,1.7138794]
[1646004931109,4.657e-05,2613.8,2613.3,0.00127177]
[1646004931310,4.657e-05,2613.8,2613.5,16.63]
[1646004931510,4.657e-05,2613.8,2613.6,0.457]
[1646004931714,1.50412238,2614.9,2613.3,0.30127177]
[1646004931912,1.50412238,2614.9,2613.3,0.3]
[1646004932111,0.25,2614.9,2613.2,5.0]
[1646004932312,0.25,2614.9,2613.8,5.0]
[1646004932514,0.25751292,2616.1,2614.0,0.3827]
[1646004932715,0.25751292,2616.1,2614.1,9.257]
[1646004932913,0.25751292,2616.1,2614.2,0.29109997]
[1646004933314,1.41092923,2615.8,2614.5,1.14500462]
[1646004933515,1.91498582,2615.7,2614.2,0.29109997]
[1646004933715,0.00169582,2615.7,2614.2,0.29109997]
[1646004933916,0.00169582,2615.7,2614.2,0.1529]
[1646004933917,0.24905989,2615.6,2614.2,0.1529]
[1646004934115,0.00169582,2615.5,2614.2,0.1529]
[1646004934316,5.00169582,2615.5,2614.1,1.0]
[1646004934517,0.95701,2614.4,2614.1,1.0]
[1646004934758,0.00169582,2614.7,2614.1,1.0]
[1646004934963,0.00169582,2614.8,2614.1,1.0]
[1646004935162,0.00169582,2615.1,2614.1,1.0]
[1646004935563,1.18015139,2614.8,2614.1,1.0]
[1646004935767,0.00581019,2614.7,2614.1,1.0015541]
[1646004936567,0.00581019,2614.7,2614.2,3.5]
[1646004936764,1.20672,2615.3,2614.1,12.93]
[1646004936765,0.00169582,2615.2,2614.1,12.93]
[1646004936965,0.00581023,2614.5,2614.2,3.5]
[1646004937163,0.00581023,2614.5,2614.1,2.3262541]
[1646004937364,0.95699,2614.4,2614.1,2.0348541]
[1646004937766,0.95699,2614.4,2614.1,1.0015541]
[1646004938065,0.95699,2614.4,2614.1,1.0]
[1646004938267,0.96280026,2614.4,2614.1,1.0015541]
[1646004938509,2.35827315,2614.4,2614.1,1.0015541]
[1646004939102,2.35246289,2614.4,2614.1,1.0]
[1646004939302,2.35780697,2614.4,2614.1,1.0]
[1646004939905,0.95725,2613.9,2613.2,0.13819997]
[1646004940106,0.95725,2613.9,2612.5,3.19927821]
[1646004940304,0.95725,2613.9,2612.5,11.63]
[1646004940305,0.00169582,2613.8,2612.5,11.63]
[1646004940507,0.00169582,2613.8,2612.7,12.0127]
[1646004940810,0.00169582,2613.8,2612.5,0.153]
[1646004941405,0.00169582,2613.8,2612.7,12.0127]
[1646004941806,1.27683217,2613.6,2612.7,12.93]
[1646004942005,0.00169582,2613.5,2612.7,1.3]
[1646004942247,0.00169582,2613.5,2612.7,0.3]
[1646004942453,0.00169582,2613.5,2612.5,0.153]
[1646004942651,1.30493798,2613.2,2612.5,0.153]
[1646004942853,0.00169582,2613.2,2612.5,0.453]
[1646004943151,0.95908582,2613.5,2613.0,0.00155662]
[1646004943357,0.95739,2613.5,2613.0,0.00155662]
[1646004943951,1.22934051,2613.3,2612.3,0.3223]
[1646004944152,0.00169582,2613.4,2612.5,0.3827]
[1646004944352,0.9572,2614.0,2612.9,12.0127]
[1646004944553,0.00168944,2614.1,2613.1,11.63]
[1646004944753,0.00168944,2613.9,2613.1,3.957]
[1646004944954,0.00168944,2614.1,2612.3,4.2793]
[1646004945152,1.03233114,2613.3,2612.3,0.7793]
[1646004945351,0.00168944,2613.2,2612.3,12.087]
[1646004945752,0.00168944,2613.2,2612.4,0.153]
[1646004946002,1.03402058,2613.3,2612.4,0.153]
[1646004947506,1.03233114,2613.3,2612.4,0.153]
[1646004947704,0.00168944,2613.5,2612.4,0.153]
[1646004947905,0.00168944,2613.6,2612.7,0.00155287]
[1646004948512,0.95747,2613.3,2612.7,0.00155287]
[1646004948707,0.95747,2613.3,2612.4,0.153]
[1646004948906,1.10555327,2613.0,2612.4,0.153]
[1646004950162,0.00168944,2613.4,2612.6,0.00155296]
[1646004950360,0.00168944,2613.6,2612.6,0.00155296]
[1646004951169,0.00168944,2613.6,2612.6,3.5]
[1646004951369,0.00168944,2614.0,2613.0,0.00155272]
[1646004951565,0.00580741,2614.3,2613.0,0.00155272]
[1646004951763,0.00168944,2614.0,2613.1,0.3827]
[1646004951964,0.00580741,2614.3,2613.2,3.5]
[1646004952164,0.00580741,2614.3,2613.0,1.00155272]
[1646004952364,1.50727574,2614.3,2613.1,3.5]
[1646004952569,0.00168944,2614.2,2613.0,0.3]
[1646004952967,0.00168944,2614.2,2613.0,3.5]
[1646004953365,0.00168944,2614.2,2613.0,4.5]